[Event "Titled Tuesday Blitz April 4 Early 2023"]
[White "Zakhartsov, Vladimir"]
[Black "Naroditsky, Daniel"]
[WhiteFideId "4145097"]
[BlackFideId "2026961"]
[WhiteElo "2497"]
[BlackElo "2633"]
[Result "1/2-1/2"]
[Round "09"]
[TimeControl "180+2"]
[Date "2023.04.04"]
[WhiteClock "0:01:05"]
[BlackClock "0:00:33"]

1. e4 {[%clk 0:02:56]}  c5 {[%clk 0:02:57]} 2. Nf3 {[%clk 0:02:53]}  d6 {[%clk 0:02:58]} 3. g3 {[%clk 0:02:51]}  Nf6 {[%clk 0:02:57]} 4. Qe2 {[%clk 0:02:51]}  Nc6 {[%clk 0:02:53]} 5. Bg2 {[%clk 0:02:51]}  Bg4 {[%clk 0:02:49]} 6. c3 {[%clk 0:02:51]}  e6 {[%clk 0:02:49]} 7. d3 {[%clk 0:02:50]}  Be7 {[%clk 0:02:49]} 8. Nbd2 {[%clk 0:02:50]}  O-O {[%clk 0:02:49]} 9. h3 {[%clk 0:02:51]}  Bxf3 {[%clk 0:02:46]} 10. Nxf3 {[%clk 0:02:52]}  Rb8 {[%clk 0:02:46]} 11. O-O {[%clk 0:02:51]}  b5 {[%clk 0:02:45]} 12. d4 {[%clk 0:02:50]}  cxd4 {[%clk 0:02:21]} 13. Nxd4 {[%clk 0:02:47]}  Nxd4 {[%clk 0:02:00]} 14. cxd4 {[%clk 0:02:46]}  Qb6 {[%clk 0:01:51]} 15. Be3 {[%clk 0:02:43]}  d5 {[%clk 0:01:51]} 16. e5 {[%clk 0:02:36]}  Nd7 {[%clk 0:01:48]} 17. f4 {[%clk 0:02:31]}  f5 {[%clk 0:01:48]} 18. exf6 {[%clk 0:02:23]}  Nxf6 {[%clk 0:01:41]} 19. Bf2 {[%clk 0:02:22]}  Rbe8 {[%clk 0:01:40]} 20. Rac1 {[%clk 0:02:19]}  a6 {[%clk 0:01:40]} 21. Rc2 {[%clk 0:02:18]}  Rc8 {[%clk 0:01:28]} 22. Rfc1 {[%clk 0:02:17]}  Rxc2 {[%clk 0:01:27]} 23. Qxc2 {[%clk 0:02:18]}  Rd8 {[%clk 0:01:23]} 24. Qc7 {[%clk 0:02:11]}  Qxc7 {[%clk 0:01:23]} 25. Rxc7 {[%clk 0:02:11]}  Rd7 {[%clk 0:01:23]} 26. Rxd7 {[%clk 0:01:52]}  Nxd7 {[%clk 0:01:24]} 27. f5 {[%clk 0:01:52]}  Kf7 {[%clk 0:01:23]} 28. fxe6+ {[%clk 0:01:51]}  Kxe6 {[%clk 0:01:24]} 29. Kf1 {[%clk 0:01:51]}  Nf6 {[%clk 0:01:20]} 30. Ke2 {[%clk 0:01:48]}  Ne4 {[%clk 0:01:19]} 31. Be1 {[%clk 0:01:49]}  h5 {[%clk 0:01:18]} 32. Kd3 {[%clk 0:01:45]}  Kf5 {[%clk 0:01:06]} 33. Bf3 {[%clk 0:01:38]}  g6 {[%clk 0:01:03]} 34. Ke3 {[%clk 0:01:17]}  Bg5+ {[%clk 0:01:03]} 35. Kd3 {[%clk 0:01:17]}  Be7 {[%clk 0:00:59]} 36. Ke3 {[%clk 0:01:14]}  Nf6 {[%clk 0:00:44]} 37. Ba5 {[%clk 0:01:05]}  Bd6 {[%clk 0:00:39]} 38. Bd8 {[%clk 0:01:05]}  Bxg3 {[%clk 0:00:33]} 39. Bxf6 {[%clk 0:01:05]} 1/2-1/2


[Site "https://www.chess.com"]

[Event "Titled Tuesday Blitz April 4 Early 2023"]
[White "Salemgareev, Tagir"]
[Black "Indjic, Aleksandar"]
[WhiteFideId "24199052"]
[BlackFideId "911925"]
[WhiteElo "2360"]
[BlackElo "2614"]
[Result "1-0"]
[Round "09"]
[TimeControl "180+2"]
[Date "2023.04.04"]
[WhiteClock "0:00:20"]
[BlackClock "0:01:07"]

1. d4 {[%clk 0:02:17]}  Nf6 {[%clk 0:02:58]} 2. c4 {[%clk 0:02:17]}  e6 {[%clk 0:02:59]} 3. Nf3 {[%clk 0:02:14]}  c5 {[%clk 0:02:59]} 4. d5 {[%clk 0:02:14]}  d6 {[%clk 0:02:59]} 5. Nc3 {[%clk 0:02:12]}  exd5 {[%clk 0:03:00]} 6. cxd5 {[%clk 0:02:10]}  g6 {[%clk 0:03:00]} 7. e4 {[%clk 0:02:09]}  a6 {[%clk 0:03:00]} 8. a4 {[%clk 0:02:08]}  Bg4 {[%clk 0:02:59]} 9. h3 {[%clk 0:02:07]}  Bxf3 {[%clk 0:03:00]} 10. Qxf3 {[%clk 0:02:07]}  Nbd7 {[%clk 0:03:00]} 11. Qd1 {[%clk 0:02:06]}  Bg7 {[%clk 0:02:58]} 12. Bd3 {[%clk 0:02:04]}  O-O {[%clk 0:02:59]} 13. O-O {[%clk 0:02:04]}  Re8 {[%clk 0:02:58]} 14. Re1 {[%clk 0:02:03]}  Rc8 {[%clk 0:02:55]} 15. Bf1 {[%clk 0:02:01]}  Nh5 {[%clk 0:02:49]} 16. Qb3 {[%clk 0:01:54]}  Rb8 {[%clk 0:02:47]} 17. Be2 {[%clk 0:01:41]}  Nhf6 {[%clk 0:02:45]} 18. Qc2 {[%clk 0:01:38]}  Qe7 {[%clk 0:02:42]} 19. Bf4 {[%clk 0:01:28]}  Qf8 {[%clk 0:02:37]} 20. a5 {[%clk 0:01:14]}  h5 {[%clk 0:02:34]} 21. Bf1 {[%clk 0:01:13]}  Bh6 {[%clk 0:02:33]} 22. Bh2 {[%clk 0:01:08]}  g5 {[%clk 0:02:33]} 23. Nd1 {[%clk 0:01:04]}  g4 {[%clk 0:02:32]} 24. Ne3 {[%clk 0:01:01]}  Nxe4 {[%clk 0:01:41]} 25. Nf5 {[%clk 0:00:59]}  Ndf6 {[%clk 0:01:41]} 26. Bd3 {[%clk 0:00:55]}  g3 {[%clk 0:01:30]} 27. fxg3 {[%clk 0:00:51]}  Ng5 {[%clk 0:01:29]} 28. g4 {[%clk 0:00:51]}  Rxe1+ {[%clk 0:01:24]} 29. Rxe1 {[%clk 0:00:50]}  Rd8 {[%clk 0:01:23]} 30. h4 {[%clk 0:00:42]}  Nxg4 {[%clk 0:01:22]} 31. hxg5 {[%clk 0:00:36]}  Bxg5 {[%clk 0:01:23]} 32. Be2 {[%clk 0:00:28]}  Re8 {[%clk 0:01:13]} 33. Rf1 {[%clk 0:00:25]}  Be3+ {[%clk 0:01:08]} 34. Kh1 {[%clk 0:00:20]}  Nf2+ {[%clk 0:01:06]} 35. Rxf2 {[%clk 0:00:20]}  Bxf2 {[%clk 0:01:07]} 36. Bxd6 {[%clk 0:00:20]} 1-0


[Site "https://www.chess.com"]

[Event "Titled Tuesday Blitz April 4 Early 2023"]
[White "Vidit, Santosh Gujrathi"]
[Black "Kozak, Antoni"]
[WhiteFideId "5029465"]
[BlackFideId "21832030"]
[WhiteElo "2651"]
[BlackElo "2470"]
[Result "1-0"]
[Round "09"]
[TimeControl "180+2"]
[Date "2023.04.04"]
[WhiteClock "0:00:05"]
[BlackClock "0:00:19"]

1. b3 {[%clk 0:02:52]}  d5 {[%clk 0:02:59]} 2. Bb2 {[%clk 0:02:52]}  Nf6 {[%clk 0:02:58]} 3. Nf3 {[%clk 0:02:51]}  c6 {[%clk 0:02:57]} 4. d3 {[%clk 0:02:49]}  Bg4 {[%clk 0:02:56]} 5. Nbd2 {[%clk 0:02:43]}  Nbd7 {[%clk 0:02:55]} 6. h3 {[%clk 0:02:42]}  Bxf3 {[%clk 0:02:53]} 7. Nxf3 {[%clk 0:02:43]}  e6 {[%clk 0:02:51]} 8. g3 {[%clk 0:02:36]}  Bb4+ {[%clk 0:02:51]} 9. Nd2 {[%clk 0:02:33]}  h5 {[%clk 0:02:39]} 10. Bg2 {[%clk 0:02:26]}  Qa5 {[%clk 0:02:29]} 11. a3 {[%clk 0:02:19]}  Bd6 {[%clk 0:02:28]} 12. c4 {[%clk 0:02:07]}  h4 {[%clk 0:02:07]} 13. g4 {[%clk 0:02:05]}  Qc7 {[%clk 0:02:03]} 14. e3 {[%clk 0:02:02]}  Ne5 {[%clk 0:01:57]} 15. Qe2 {[%clk 0:02:01]}  Ng6 {[%clk 0:01:57]} 16. O-O {[%clk 0:01:47]}  O-O-O {[%clk 0:01:57]} 17. Rfc1 {[%clk 0:01:41]}  Kb8 {[%clk 0:01:56]} 18. b4 {[%clk 0:01:38]}  Qe7 {[%clk 0:01:48]} 19. Rab1 {[%clk 0:01:24]}  e5 {[%clk 0:01:38]} 20. cxd5 {[%clk 0:01:15]}  cxd5 {[%clk 0:01:35]} 21. g5 {[%clk 0:01:14]}  Nh7 {[%clk 0:01:33]} 22. Bxd5 {[%clk 0:01:05]}  Nxg5 {[%clk 0:01:33]} 23. Bg2 {[%clk 0:01:01]}  Qd7 {[%clk 0:01:27]} 24. Qf1 {[%clk 0:00:30]}  Bc7 {[%clk 0:01:21]} 25. Nb3 {[%clk 0:00:21]}  Qf5 {[%clk 0:01:12]} 26. Nc5 {[%clk 0:00:19]}  Nf3+ {[%clk 0:01:09]} 27. Bxf3 {[%clk 0:00:15]}  Qxf3 {[%clk 0:01:09]} 28. Qg2 {[%clk 0:00:16]}  Qxg2+ {[%clk 0:01:03]} 29. Kxg2 {[%clk 0:00:17]}  Bb6 {[%clk 0:01:01]} 30. d4 {[%clk 0:00:15]}  Rh5 {[%clk 0:00:58]} 31. dxe5 {[%clk 0:00:14]}  Nxe5 {[%clk 0:00:58]} 32. Rc2 {[%clk 0:00:09]}  Rg5+ {[%clk 0:00:57]} 33. Kf1 {[%clk 0:00:09]}  Nf3 {[%clk 0:00:48]} 34. Rbc1 {[%clk 0:00:09]}  Bxc5 {[%clk 0:00:46]} 35. Rxc5 {[%clk 0:00:07]}  Rxc5 {[%clk 0:00:37]} 36. Rxc5 {[%clk 0:00:08]}  f6 {[%clk 0:00:32]} 37. Bc3 {[%clk 0:00:06]}  Ng5 {[%clk 0:00:28]} 38. Rc4 {[%clk 0:00:04]}  Rc8 {[%clk 0:00:23]} 39. Rxc8+ {[%clk 0:00:03]}  Kxc8 {[%clk 0:00:24]} 40. Kg2 {[%clk 0:00:02]}  Kd7 {[%clk 0:00:24]} 41. f3 {[%clk 0:00:03]}  Ke6 {[%clk 0:00:22]} 42. Be1 {[%clk 0:00:03]}  Nf7 {[%clk 0:00:20]} 43. Bxh4 {[%clk 0:00:04]}  Ne5 {[%clk 0:00:20]} 44. Be1 {[%clk 0:00:04]}  b5 {[%clk 0:00:21]} 45. Kf2 {[%clk 0:00:03]}  Kd5 {[%clk 0:00:21]} 46. e4+ {[%clk 0:00:03]}  Kc4 {[%clk 0:00:21]} 47. Ke3 {[%clk 0:00:03]}  Kb3 {[%clk 0:00:21]} 48. f4 {[%clk 0:00:03]}  Nc4+ {[%clk 0:00:22]} 49. Kd4 {[%clk 0:00:03]}  Kxa3 {[%clk 0:00:22]} 50. e5 {[%clk 0:00:03]}  fxe5+ {[%clk 0:00:21]} 51. fxe5 {[%clk 0:00:04]}  Ka4 {[%clk 0:00:21]} 52. e6 {[%clk 0:00:05]}  Nd6 {[%clk 0:00:19]} 53. Kd5 {[%clk 0:00:03]}  Nf5 {[%clk 0:00:19]} 54. Kc6 {[%clk 0:00:02]}  Kb3 {[%clk 0:00:17]} 55. Kd7 {[%clk 0:00:03]}  Kc2 {[%clk 0:00:16]} 56. e7 {[%clk 0:00:03]}  Nxe7 {[%clk 0:00:16]} 57. Kxe7 {[%clk 0:00:04]}  g6 {[%clk 0:00:17]} 58. Bf2 {[%clk 0:00:04]}  Kd1 {[%clk 0:00:17]} 59. Bxa7 {[%clk 0:00:04]}  Kd2 {[%clk 0:00:18]} 60. Kf6 {[%clk 0:00:04]}  Kc3 {[%clk 0:00:19]} 61. Bc5 {[%clk 0:00:05]} 1-0


[Site "https://www.chess.com"]

[Event "Titled Tuesday Blitz April 4 Early 2023"]
[White "Kilic, Eray"]
[Black "Hovhannisyan, Robert"]
[WhiteFideId "44517173"]
[BlackFideId "13302507"]
[WhiteElo "2328"]
[BlackElo "2570"]
[Result "0-1"]
[Round "09"]
[TimeControl "180+2"]
[Date "2023.04.04"]
[WhiteClock "0:00:05"]
[BlackClock "0:00:05"]

1. e4 {[%clk 0:03:00]}  c6 {[%clk 0:02:57]} 2. Nc3 {[%clk 0:02:58]}  d5 {[%clk 0:02:56]} 3. Nf3 {[%clk 0:02:58]}  dxe4 {[%clk 0:02:55]} 4. Nxe4 {[%clk 0:02:59]}  Nf6 {[%clk 0:02:56]} 5. Nxf6+ {[%clk 0:02:58]}  exf6 {[%clk 0:02:56]} 6. d4 {[%clk 0:02:52]}  Bd6 {[%clk 0:02:56]} 7. Bd3 {[%clk 0:02:52]}  O-O {[%clk 0:02:55]} 8. O-O {[%clk 0:02:53]}  Re8 {[%clk 0:02:54]} 9. h3 {[%clk 0:02:52]}  Nd7 {[%clk 0:02:48]} 10. Re1 {[%clk 0:02:52]}  Rxe1+ {[%clk 0:02:47]} 11. Qxe1 {[%clk 0:02:51]}  Nf8 {[%clk 0:02:47]} 12. c4 {[%clk 0:02:51]}  Be6 {[%clk 0:02:46]} 13. Be3 {[%clk 0:02:50]}  Qd7 {[%clk 0:02:43]} 14. Qf1 {[%clk 0:02:50]}  Ng6 {[%clk 0:02:34]} 15. Rd1 {[%clk 0:02:50]}  Nf4 {[%clk 0:02:31]} 16. Bxf4 {[%clk 0:02:40]}  Bxf4 {[%clk 0:02:32]} 17. d5 {[%clk 0:02:39]}  cxd5 {[%clk 0:02:30]} 18. cxd5 {[%clk 0:02:40]}  Bf5 {[%clk 0:02:19]} 19. Bxf5 {[%clk 0:02:37]}  Qxf5 {[%clk 0:02:20]} 20. Qb5 {[%clk 0:02:32]}  g6 {[%clk 0:02:13]} 21. Qxb7 {[%clk 0:02:23]}  Rb8 {[%clk 0:02:12]} 22. Qxa7 {[%clk 0:02:22]}  Rxb2 {[%clk 0:02:05]} 23. Qd4 {[%clk 0:01:32]}  Qc2 {[%clk 0:01:41]} 24. Rf1 {[%clk 0:00:52]}  Be5 {[%clk 0:00:43]} 25. Nxe5 {[%clk 0:00:43]}  fxe5 {[%clk 0:00:44]} 26. Qxe5 {[%clk 0:00:44]}  Rxa2 {[%clk 0:00:44]} 27. Qe8+ {[%clk 0:00:36]}  Kg7 {[%clk 0:00:44]} 28. d6 {[%clk 0:00:35]}  Qd3 {[%clk 0:00:36]} 29. Qe5+ {[%clk 0:00:28]}  Kh6 {[%clk 0:00:22]} 30. Qe3+ {[%clk 0:00:17]}  Qxe3 {[%clk 0:00:21]} 31. fxe3 {[%clk 0:00:18]}  Kg7 {[%clk 0:00:14]} 32. Rd1 {[%clk 0:00:16]}  Ra8 {[%clk 0:00:15]} 33. e4 {[%clk 0:00:14]}  Kf6 {[%clk 0:00:15]} 34. e5+ {[%clk 0:00:13]}  Kxe5 {[%clk 0:00:13]} 35. d7 {[%clk 0:00:12]}  Rd8 {[%clk 0:00:12]} 36. Kf2 {[%clk 0:00:12]}  Ke6 {[%clk 0:00:13]} 37. Kg3 {[%clk 0:00:12]}  Rxd7 {[%clk 0:00:13]} 38. Re1+ {[%clk 0:00:13]}  Kf6 {[%clk 0:00:13]} 39. Rf1+ {[%clk 0:00:13]}  Kg7 {[%clk 0:00:13]} 40. Kh2 {[%clk 0:00:14]}  Rd4 {[%clk 0:00:13]} 41. Re1 {[%clk 0:00:14]}  Ra4 {[%clk 0:00:14]} 42. Re3 {[%clk 0:00:14]}  Ra5 {[%clk 0:00:14]} 43. Rf3 {[%clk 0:00:14]}  Ra2 {[%clk 0:00:14]} 44. Re3 {[%clk 0:00:14]}  Rb2 {[%clk 0:00:14]} 45. Rf3 {[%clk 0:00:14]}  Rb4 {[%clk 0:00:14]} 46. Re3 {[%clk 0:00:14]}  g5 {[%clk 0:00:15]} 47. Re5 {[%clk 0:00:13]}  h6 {[%clk 0:00:14]} 48. Rc5 {[%clk 0:00:09]}  Ra4 {[%clk 0:00:15]} 49. Rc6 {[%clk 0:00:09]}  Re4 {[%clk 0:00:13]} 50. Rc5 {[%clk 0:00:08]}  Kg6 {[%clk 0:00:12]} 51. Rc6+ {[%clk 0:00:08]}  Re6 {[%clk 0:00:13]} 52. Rc5 {[%clk 0:00:07]}  f5 {[%clk 0:00:13]} 53. Rc2 {[%clk 0:00:07]}  Rd6 {[%clk 0:00:09]} 54. Rc5 {[%clk 0:00:07]}  f4 {[%clk 0:00:08]} 55. Rc4 {[%clk 0:00:07]}  Rd2 {[%clk 0:00:08]} 56. Rc6+ {[%clk 0:00:06]}  Kg7 {[%clk 0:00:08]} 57. Rc7+ {[%clk 0:00:06]}  Kf6 {[%clk 0:00:05]} 58. Rc6+ {[%clk 0:00:05]}  Ke5 {[%clk 0:00:05]} 59. Rxh6 {[%clk 0:00:05]}  f3 {[%clk 0:00:05]} 60. Kg3 {[%clk 0:00:05]}  f2 {[%clk 0:00:05]} 0-1


[Site "https://www.chess.com"]

[Event "Titled Tuesday Blitz April 4 Early 2023"]
[White "Rohith Krishna S"]
[Black "Corrales Jimenez, Fidel"]
[WhiteFideId "46617051"]
[BlackFideId "3506690"]
[WhiteElo "2270"]
[BlackElo "2541"]
[Result "0-1"]
[Round "09"]
[TimeControl "180+2"]
[Date "2023.04.04"]
[WhiteClock "0:01:08"]
[BlackClock "0:02:07"]

1. d4 {[%clk 0:02:56]}  Nf6 {[%clk 0:02:41]} 2. c4 {[%clk 0:02:46]}  e6 {[%clk 0:02:41]} 3. Nc3 {[%clk 0:02:45]}  Bb4 {[%clk 0:02:41]} 4. Bd2 {[%clk 0:02:42]}  d5 {[%clk 0:02:39]} 5. e3 {[%clk 0:02:41]}  O-O {[%clk 0:02:39]} 6. Bd3 {[%clk 0:02:40]}  c5 {[%clk 0:02:38]} 7. cxd5 {[%clk 0:02:40]}  cxd4 {[%clk 0:02:38]} 8. exd4 {[%clk 0:02:39]}  exd5 {[%clk 0:02:37]} 9. Nge2 {[%clk 0:02:40]}  h6 {[%clk 0:02:37]} 10. O-O {[%clk 0:02:40]}  Nc6 {[%clk 0:02:37]} 11. a3 {[%clk 0:02:40]}  Bd6 {[%clk 0:02:37]} 12. h3 {[%clk 0:02:37]}  a6 {[%clk 0:02:36]} 13. Re1 {[%clk 0:02:37]}  Re8 {[%clk 0:02:34]} 14. Rc1 {[%clk 0:02:36]}  Be6 {[%clk 0:02:32]} 15. Bb1 {[%clk 0:02:35]}  Qd7 {[%clk 0:02:32]} 16. Bf4 {[%clk 0:02:24]}  Bf8 {[%clk 0:02:31]} 17. Bh2 {[%clk 0:02:21]}  Bf5 {[%clk 0:02:31]} 18. Bxf5 {[%clk 0:02:08]}  Qxf5 {[%clk 0:02:32]} 19. Qb3 {[%clk 0:02:09]}  b5 {[%clk 0:02:22]} 20. Rcd1 {[%clk 0:01:40]}  Na5 {[%clk 0:02:18]} 21. Qa2 {[%clk 0:01:40]}  Nc4 {[%clk 0:02:17]} 22. a4 {[%clk 0:01:37]}  b4 {[%clk 0:02:16]} 23. Nb1 {[%clk 0:01:32]}  Qc2 {[%clk 0:02:15]} 24. Nf4 {[%clk 0:01:26]}  b3 {[%clk 0:02:14]} 25. Qa1 {[%clk 0:01:21]}  Nxb2 {[%clk 0:02:13]} 26. Rc1 {[%clk 0:01:17]}  Nc4 {[%clk 0:02:09]} 27. Qc3 {[%clk 0:01:07]}  Qxc3 {[%clk 0:02:07]} 28. Nxc3 {[%clk 0:01:07]}  Rxe1+ {[%clk 0:02:07]} 29. Rxe1 {[%clk 0:01:08]}  Bb4 {[%clk 0:02:07]} 0-1


[Site "https://www.chess.com"]

[Event "Titled Tuesday Blitz April 4 Early 2023"]
[White "Thomforde-Toates, Noah"]
[Black "Bachmann, Axel"]
[WhiteFideId "30951992"]
[BlackFideId "3700488"]
[WhiteElo "2702"]
[BlackElo "2605"]
[Result "0-1"]
[Round "09"]
[TimeControl "180+2"]
[Date "2023.04.04"]
[WhiteClock "0:00:10"]
[BlackClock "0:01:37"]

1. e4 {[%clk 0:02:57]}  Nc6 {[%clk 0:02:59]} 2. Nf3 {[%clk 0:02:55]}  d6 {[%clk 0:02:58]} 3. h3 {[%clk 0:02:50]}  Nf6 {[%clk 0:02:58]} 4. Nc3 {[%clk 0:02:49]}  g6 {[%clk 0:02:56]} 5. d4 {[%clk 0:02:48]}  Bg7 {[%clk 0:02:56]} 6. d5 {[%clk 0:02:46]}  Nb8 {[%clk 0:02:55]} 7. Be2 {[%clk 0:02:43]}  c6 {[%clk 0:02:51]} 8. O-O {[%clk 0:02:41]}  O-O {[%clk 0:02:46]} 9. Be3 {[%clk 0:02:37]}  b6 {[%clk 0:02:44]} 10. a4 {[%clk 0:02:25]}  a6 {[%clk 0:02:42]} 11. Nd2 {[%clk 0:02:03]}  Bb7 {[%clk 0:02:39]} 12. dxc6 {[%clk 0:01:55]}  Nxc6 {[%clk 0:02:36]} 13. Nc4 {[%clk 0:01:52]}  Nd7 {[%clk 0:02:36]} 14. Nd5 {[%clk 0:01:51]}  b5 {[%clk 0:02:29]} 15. axb5 {[%clk 0:01:47]}  axb5 {[%clk 0:02:29]} 16. Rxa8 {[%clk 0:01:46]}  Bxa8 {[%clk 0:02:27]} 17. Ncb6 {[%clk 0:01:45]}  Nxb6 {[%clk 0:02:23]} 18. Bxb6 {[%clk 0:01:34]}  Qb8 {[%clk 0:02:16]} 19. Bxb5 {[%clk 0:01:04]}  Ne5 {[%clk 0:02:04]} 20. Nxe7+ {[%clk 0:00:29]}  Kh8 {[%clk 0:02:02]} 21. Nd5 {[%clk 0:00:28]}  Bxd5 {[%clk 0:02:00]} 22. Qxd5 {[%clk 0:00:29]}  Qxb6 {[%clk 0:02:00]} 23. c4 {[%clk 0:00:27]}  f5 {[%clk 0:01:52]} 24. Kh2 {[%clk 0:00:22]}  fxe4 {[%clk 0:01:42]} 25. Qxe4 {[%clk 0:00:15]}  Rxf2 {[%clk 0:01:41]} 26. Qa8+ {[%clk 0:00:12]}  Bf8 {[%clk 0:01:42]} 27. Rxf2 {[%clk 0:00:12]}  Qxf2 {[%clk 0:01:43]} 28. Qe4 {[%clk 0:00:13]}  Bh6 {[%clk 0:01:37]} 29. Qa8+ {[%clk 0:00:10]}  Kg7 {[%clk 0:01:37]} 30. Qb7+ {[%clk 0:00:10]}  Kf6 {[%clk 0:01:37]} 0-1


[Site "https://www.chess.com"]

[Event "Titled Tuesday Blitz April 4 Early 2023"]
[White "Antal, Gergely"]
[Black "Costachi, Mihnea"]
[WhiteFideId "717312"]
[BlackFideId "1217518"]
[WhiteElo "2471"]
[BlackElo "2456"]
[Result "1/2-1/2"]
[Round "09"]
[TimeControl "180+2"]
[Date "2023.04.04"]
[WhiteClock "0:00:11"]
[BlackClock "0:00:11"]

1. e4 {[%clk 0:02:56]}  e5 {[%clk 0:02:59]} 2. Nc3 {[%clk 0:02:55]}  Nf6 {[%clk 0:02:59]} 3. g3 {[%clk 0:02:56]}  Nc6 {[%clk 0:02:54]} 4. Bg2 {[%clk 0:02:56]}  g6 {[%clk 0:02:55]} 5. d3 {[%clk 0:02:55]}  Bg7 {[%clk 0:02:55]} 6. Nge2 {[%clk 0:02:55]}  O-O {[%clk 0:02:56]} 7. O-O {[%clk 0:02:56]}  d6 {[%clk 0:02:56]} 8. h3 {[%clk 0:02:56]}  Be6 {[%clk 0:02:49]} 9. Nd5 {[%clk 0:02:54]}  Bxd5 {[%clk 0:02:47]} 10. exd5 {[%clk 0:02:54]}  Ne7 {[%clk 0:02:47]} 11. c4 {[%clk 0:02:55]}  c6 {[%clk 0:02:30]} 12. dxc6 {[%clk 0:02:53]}  bxc6 {[%clk 0:02:31]} 13. f4 {[%clk 0:02:15]}  exf4 {[%clk 0:02:31]} 14. Nxf4 {[%clk 0:02:15]}  Nf5 {[%clk 0:02:21]} 15. Kh2 {[%clk 0:02:13]}  d5 {[%clk 0:02:16]} 16. cxd5 {[%clk 0:02:12]}  cxd5 {[%clk 0:02:17]} 17. Ne2 {[%clk 0:02:02]}  Rb8 {[%clk 0:02:12]} 18. Rxf5 {[%clk 0:02:02]}  gxf5 {[%clk 0:02:11]} 19. Rb1 {[%clk 0:01:45]}  Re8 {[%clk 0:02:01]} 20. Nf4 {[%clk 0:01:39]}  Qa5 {[%clk 0:01:52]} 21. Bd2 {[%clk 0:01:34]}  Qxa2 {[%clk 0:01:53]} 22. Bc3 {[%clk 0:01:35]}  Qb3 {[%clk 0:01:18]} 23. Qf1 {[%clk 0:00:59]}  Rbd8 {[%clk 0:00:57]} 24. Bxf6 {[%clk 0:00:20]}  Bxf6 {[%clk 0:00:57]} 25. Nh5 {[%clk 0:00:20]}  Be5 {[%clk 0:00:57]} 26. Qxf5 {[%clk 0:00:20]}  Qb6 {[%clk 0:00:58]} 27. Ra1 {[%clk 0:00:15]}  Qg6 {[%clk 0:00:55]} 28. Qf3 {[%clk 0:00:15]}  Bd4 {[%clk 0:00:45]} 29. Ra4 {[%clk 0:00:15]}  Re3 {[%clk 0:00:46]} 30. Qf4 {[%clk 0:00:12]}  Qxh5 {[%clk 0:00:40]} 31. Rxd4 {[%clk 0:00:11]}  Re6 {[%clk 0:00:39]} 32. Qc7 {[%clk 0:00:10]}  Rde8 {[%clk 0:00:30]} 33. Rxd5 {[%clk 0:00:11]}  Qh6 {[%clk 0:00:23]} 34. Rd8 {[%clk 0:00:09]}  Qe3 {[%clk 0:00:19]} 35. Rxe8+ {[%clk 0:00:07]}  Rxe8 {[%clk 0:00:20]} 36. Qd6 {[%clk 0:00:05]}  Qe6 {[%clk 0:00:20]} 37. Qd4 {[%clk 0:00:05]}  Qe5 {[%clk 0:00:18]} 38. Qxa7 {[%clk 0:00:05]}  Qxb2 {[%clk 0:00:17]} 39. Qd7 {[%clk 0:00:06]}  Qe5 {[%clk 0:00:16]} 40. Qg4+ {[%clk 0:00:06]}  Kf8 {[%clk 0:00:16]} 41. d4 {[%clk 0:00:07]}  Qe6 {[%clk 0:00:15]} 42. Qh4 {[%clk 0:00:06]}  Kg7 {[%clk 0:00:14]} 43. d5 {[%clk 0:00:07]}  Qf6 {[%clk 0:00:15]} 44. Qg4+ {[%clk 0:00:07]}  Qg6 {[%clk 0:00:15]} 45. Qd4+ {[%clk 0:00:07]}  Qf6 {[%clk 0:00:15]} 46. Qg4+ {[%clk 0:00:08]}  Kf8 {[%clk 0:00:16]} 47. Qh5 {[%clk 0:00:08]}  Kg8 {[%clk 0:00:12]} 48. Qg4+ {[%clk 0:00:09]}  Qg6 {[%clk 0:00:13]} 49. Qd4 {[%clk 0:00:09]}  Rd8 {[%clk 0:00:13]} 50. Qc4 {[%clk 0:00:08]}  h6 {[%clk 0:00:12]} 51. Qe2 {[%clk 0:00:09]}  Kg7 {[%clk 0:00:12]} 52. Qd2 {[%clk 0:00:09]}  Qf6 {[%clk 0:00:12]} 53. Qe2 {[%clk 0:00:09]}  Rd6 {[%clk 0:00:12]} 54. Qg4+ {[%clk 0:00:10]}  Qg6 {[%clk 0:00:12]} 55. Qe4 {[%clk 0:00:10]}  Qf6 {[%clk 0:00:12]} 56. Qg4+ {[%clk 0:00:10]}  Qg6 {[%clk 0:00:13]} 57. Qe2 {[%clk 0:00:11]}  Qf6 {[%clk 0:00:11]} 58. Qg4+ {[%clk 0:00:11]} 1/2-1/2


[Site "https://www.chess.com"]